Organisation Name,Department where exp. Incurred,Service Category Label,Supplier (Beneficiary),Purpose of Expenditure,Procurement (Merchant) Category,Purchase Date,Settlement Date,Transaction Number,Net Amount (�)
Stockport MBC,Corporate and Support Services,Central Services to the public,MERCURE WALTON WARWICK,Staff Training,Human Resources  ,03.10.2019,16.11.2019,GPC10190000001,149.00
Stockport MBC,Corporate and Support Services,Central Services to the public,MERCURE WALTON WARWICK,Staff Training,Human Resources  ,03.10.2019,16.11.2019,GPC10190000002,141.00
Stockport MBC,Corporate and Support Services,Central Services to the public,HUB BY PREMIER INN 496,Travelling Expenses,Human Resources Travel & Subsistence ,01.10.2019,16.11.2019,GPC10190000003,162.00
Stockport MBC,Corporate and Support Services,Central Services to the public,HUB BY PREMIER INN 496,Travelling Expenses,Human Resources Travel & Subsistence ,01.10.2019,16.11.2019,GPC10190000004,131.50
Stockport MBC,Corporate and Support Services,Central Support Costs,FACEBK  MHDV9PNLG2,Office Expenses,Facilities & Management Services  ,31.10.2019,16.11.2019,GPC10190000005,94.44
Stockport MBC,Corporate and Support Services,Central Support Costs,FACEBK  H2L4PPAMG2,Office Expenses,Facilities & Management Services  ,28.10.2019,16.11.2019,GPC10190000006,700.00
Stockport MBC,Corporate and Support Services,Central Support Costs,FACEBK  5ZWWQNJMG2,Office Expenses,Facilities & Management Services  ,18.10.2019,16.11.2019,GPC10190000007,700.00
Stockport MBC,Corporate and Support Services,Central Support Costs,FACEBK  GY9KUNNLG2,Office Expenses,Facilities & Management Services  ,08.10.2019,16.11.2019,GPC10190000008,700.00
Stockport MBC,Services to People,Childrens & Educational Services,ASDA STORES 4840,Catering Supplies,Catering Food & Beverages ,31.10.2019,16.11.2019,GPC10190000009,14.30
Stockport MBC,Services to People,Childrens & Educational Services,ASDA STORES 4840,Catering Supplies,Catering Food & Beverages ,30.10.2019,16.11.2019,GPC10190000010,12.15
Stockport MBC,Services to People,Childrens & Educational Services,ASDA STORES 4840,Catering Supplies,Catering Food & Beverages ,29.10.2019,16.11.2019,GPC10190000011,12.85
Stockport MBC,Services to People,Childrens & Educational Services,ASDA STORES 4840,Catering Supplies,Catering Food & Beverages ,28.10.2019,16.11.2019,GPC10190000012,31.55
Stockport MBC,Services to People,Childrens & Educational Services,ASDA STORES 4840,Catering Supplies,Catering Food & Beverages ,18.10.2019,16.11.2019,GPC10190000013,6.17
Stockport MBC,Services to People,Childrens & Educational Services,ASDA STORES 4840,Catering Supplies,Catering Food & Beverages ,17.10.2019,16.11.2019,GPC10190000014,7.41
Stockport MBC,Services to People,Childrens & Educational Services,ASDA STORES 4840,Catering Supplies,Catering Food & Beverages ,16.10.2019,16.11.2019,GPC10190000015,12.19
Stockport MBC,Services to People,Childrens & Educational Services,ASDA STORES 4840,Catering Supplies,Catering Food & Beverages ,15.10.2019,16.11.2019,GPC10190000016,10.70
Stockport MBC,Services to People,Childrens & Educational Services,ASDA STORES 4840,Catering Supplies,Catering Food & Beverages ,14.10.2019,16.11.2019,GPC10190000017,22.44
Stockport MBC,Services to People,Childrens & Educational Services,ASDA STORES 4840,Catering Supplies,Catering Food & Beverages ,11.10.2019,16.11.2019,GPC10190000018,8.42
Stockport MBC,Services to People,Childrens & Educational Services,ASDA STORES 4840,Catering Supplies,Catering Food & Beverages ,10.10.2019,16.11.2019,GPC10190000019,17.69
Stockport MBC,Services to People,Childrens & Educational Services,ASDA STORES 4840,Catering Supplies,Catering Food & Beverages ,09.10.2019,16.11.2019,GPC10190000020,16.46
Stockport MBC,Services to People,Childrens & Educational Services,ASDA STORES 4840,Catering Supplies,Catering Food & Beverages ,08.10.2019,16.11.2019,GPC10190000021,10.50
Stockport MBC,Services to People,Childrens & Educational Services,ASDA STORES 4840,Catering Supplies,Catering Food & Beverages ,07.10.2019,16.11.2019,GPC10190000022,23.33
Stockport MBC,Services to People,Childrens & Educational Services,ASDA STORES 4840,Catering Supplies,Catering Food & Beverages ,02.10.2019,16.11.2019,GPC10190000023,17.88
Stockport MBC,Services to People,Childrens & Educational Services,PREMIER INN44011950,Staff Training,Human Resources  ,01.10.2019,16.11.2019,GPC10190000024,635.50
Stockport MBC,Services to People,Childrens & Educational Services,THE OLD FOURPENNY SHOP,Office Expenses,Facilities & Management Services  ,28.10.2019,16.11.2019,GPC10190000025,270.00
Stockport MBC,Services to People,Childrens & Educational Services,ACP  MUSIC-ROOM_GBP,Library Equipment,Education Library Books ,30.10.2019,16.11.2019,GPC10190000026,-74.75
Stockport MBC,Services to People,Childrens & Educational Services,KAPOW PRIMARY,Library Equipment,Education Library Books ,17.10.2019,16.11.2019,GPC10190000027,47.99
Stockport MBC,Services to People,Childrens & Educational Services,AMZNMKTPLACE,Furniture and Equipment,Furniture & Soft Furnishings  ,12.10.2019,16.11.2019,GPC10190000028,54.92
Stockport MBC,Services to People,Childrens & Educational Services,CHORAL MUSIC DIRECT,Library Equipment,Education Library Books ,08.10.2019,16.11.2019,GPC10190000029,63.31
Stockport MBC,Services to People,Childrens & Educational Services,WWW.OUP.COM,Fees and Charges,UNCLASSIFIED  ,08.10.2019,16.11.2019,GPC10190000030,45.60
Stockport MBC,Services to People,Childrens & Educational Services,FABER MUSIC LTD,Library Equipment,Education Library Books ,07.10.2019,16.11.2019,GPC10190000031,190.18
Stockport MBC,Services to People,Childrens & Educational Services,CARTRIDGE SAVE,Office Expenses,Stationery    ,07.10.2019,16.11.2019,GPC10190000032,36.54
Stockport MBC,Services to People,Childrens & Educational Services,TAP2PARK,Travelling Expenses,Human Resources Travel & Subsistence ,05.10.2019,16.11.2019,GPC10190000033,9.50
Stockport MBC,Services to People,Childrens & Educational Services,CURRYS STOCKPORT 2828,Information and Communications Technology,Information Communication Technology  ,05.10.2019,16.11.2019,GPC10190000034,83.49
Stockport MBC,Services to People,Childrens & Educational Services,TAP2PARK,Travelling Expenses,Human Resources Travel & Subsistence ,06.10.2019,16.11.2019,GPC10190000035,9.50
Stockport MBC,Corporate and Support Services,Cultural & Related Services,NOTE-PADS ECOMMERC,Publicity and Promotion,Arts & Leisure Services  ,15.10.2019,16.11.2019,GPC10190000036,47.95
Stockport MBC,Corporate and Support Services,Cultural & Related Services,WM MORRISONS STORE,Publicity and Promotion,Arts & Leisure Services  ,10.10.2019,16.11.2019,GPC10190000037,14.60
Stockport MBC,Services to People,Childrens & Educational Services,GOOGLE  ADS8179771860,Office Expenses,Facilities & Management Services  ,31.10.2019,16.11.2019,GPC10190000038,500.00
Stockport MBC,Services to People,Childrens & Educational Services,AMAZON.CO.UK MO1UG9DB4,Publicity and Promotion,Arts & Leisure Services  ,29.10.2019,16.11.2019,GPC10190000039,53.13
Stockport MBC,Services to People,Childrens & Educational Services,TRAINLINE,Travelling Expenses,Human Resources Travel & Subsistence ,28.10.2019,16.11.2019,GPC10190000040,209.35
Stockport MBC,Services to People,Childrens & Educational Services,TRAINLINE,Travelling Expenses,Human Resources Travel & Subsistence ,17.10.2019,16.11.2019,GPC10190000041,35.55
Stockport MBC,Services to People,Childrens & Educational Services,GOOGLE  ADS8179771860,Office Expenses,Facilities & Management Services  ,17.10.2019,16.11.2019,GPC10190000042,500.00
Stockport MBC,Services to People,Childrens & Educational Services,HOTEL ON BOOKING.COM T,Expenses and Allowances,Human Resources Travel & Subsistence ,14.10.2019,16.11.2019,GPC10190000043,158.34
Stockport MBC,Services to People,Childrens & Educational Services,TRAINLINE,Travelling Expenses,Human Resources Travel & Subsistence ,14.10.2019,16.11.2019,GPC10190000044,174.30
Stockport MBC,Services to People,Childrens & Educational Services,VISTAPRINT,Office Expenses,Facilities & Management Services  ,14.10.2019,16.11.2019,GPC10190000045,31.18
Stockport MBC,Services to People,Childrens & Educational Services,TRAINLINE,Travelling Expenses,Human Resources Travel & Subsistence ,07.10.2019,16.11.2019,GPC10190000046,20.90
Stockport MBC,Services to People,Childrens & Educational Services,GOOGLE  ADS8179771860,Office Expenses,Facilities & Management Services  ,04.10.2019,16.11.2019,GPC10190000047,500.00
Stockport MBC,Services to People,Childrens & Educational Services,AMAZON.CO.UK MO50Q8ZC4,Publicity and Promotion,Arts & Leisure Services  ,04.10.2019,16.11.2019,GPC10190000048,29.99
Stockport MBC,Services to People,Childrens & Educational Services,TRAINLINE,Travelling Expenses,Human Resources Travel & Subsistence ,02.10.2019,16.11.2019,GPC10190000049,38.00
Stockport MBC,Services to People,Childrens & Educational Services,NCP LIMITED,Travelling Expenses,Human Resources Travel & Subsistence ,23.10.2019,16.11.2019,GPC10190000050,14.00
Stockport MBC,Services to People,Childrens & Educational Services,NCP LIMITED,Travelling Expenses,Human Resources Travel & Subsistence ,04.10.2019,16.11.2019,GPC10190000051,25.00
Stockport MBC,Services to Place,Central Support Costs,STOCKPORT STN SST,Travelling Expenses,Human Resources Travel & Subsistence ,21.10.2019,16.11.2019,GPC10190000052,6.30
Stockport MBC,Services to Place,Central Support Costs,STOCKPORT STN SST,Travelling Expenses,Human Resources Travel & Subsistence ,17.10.2019,16.11.2019,GPC10190000053,18.90
Stockport MBC,Services to People,Childrens & Educational Services,AMAZON.CO.UK 2770X5JG5,Office Expenses,Stationery    ,31.10.2019,16.11.2019,GPC10190000054,24.99
Stockport MBC,Services to People,Childrens & Educational Services,NOCHEX. SENSORY EDUCAT,Office Expenses,Stationery    ,28.10.2019,16.11.2019,GPC10190000055,10.95
Stockport MBC,Services to People,Childrens & Educational Services,AMAZON PRIME MO3IF1154,Furniture and Equipment,Furniture & Soft Furnishings  ,13.10.2019,16.11.2019,GPC10190000056,7.99
Stockport MBC,Services to People,Childrens & Educational Services,AMZNMKTPLACE AMAZON.CO,Office Expenses,Stationery    ,11.10.2019,16.11.2019,GPC10190000057,93.46
Stockport MBC,Services to People,Childrens & Educational Services,AMZ AMAZON US,Office Expenses,Stationery    ,09.10.2019,16.11.2019,GPC10190000058,-6.24
Stockport MBC,Services to People,Childrens & Educational Services,UOM JODRELL BANK VISIT,Fees and Charges,Education  ,31.10.2019,16.11.2019,GPC10190000059,45.00
Stockport MBC,Services to People,Childrens & Educational Services,PEAK CAVERN LIMITED,Fees and Charges,Education  ,17.10.2019,16.11.2019,GPC10190000060,137.75
Stockport MBC,Services to People,Childrens & Educational Services,AMZNMKTPLACE,Furniture and Equipment,Environmental Services Technical Equipment ,13.10.2019,16.11.2019,GPC10190000061,12.78
Stockport MBC,Services to People,Childrens & Educational Services,WHITE PEAK ALPACAS,Fees and Charges,Education  ,10.10.2019,16.11.2019,GPC10190000062,65.00
Stockport MBC,Services to People,Childrens & Educational Services,AMZNMKTPLACE AMAZON.CO,Furniture and Equipment,Environmental Services Technical Equipment ,08.10.2019,16.11.2019,GPC10190000063,17.98
Stockport MBC,Services to People,Childrens & Educational Services,ASDA GROCERIES ONLINE,Catering Supplies,Catering Food & Beverages ,09.10.2019,16.11.2019,GPC10190000064,59.01
Stockport MBC,Services to People,Childrens & Educational Services,B & Q 1279,Furniture and Equipment,Environmental Services Technical Equipment ,09.10.2019,16.11.2019,GPC10190000065,57.19
Stockport MBC,Services to People,Childrens & Educational Services,WM MORRISONS STORE,Catering Supplies,Catering Food & Beverages ,09.10.2019,16.11.2019,GPC10190000066,20.90
Stockport MBC,Services to People,Childrens & Educational Services,WM MORRISONS STORE,Catering Supplies,Catering Food & Beverages ,09.10.2019,16.11.2019,GPC10190000067,32.11
Stockport MBC,Services to People,Childrens & Educational Services,AMZNMKTPLACE,Furniture and Equipment,Environmental Services Technical Equipment ,08.10.2019,16.11.2019,GPC10190000068,7.99
Stockport MBC,Services to People,Childrens & Educational Services,WM MORRISONS STORE,Catering Supplies,Catering Food & Beverages ,07.10.2019,16.11.2019,GPC10190000069,10.00
Stockport MBC,Services to People,Childrens & Educational Services,ASDA GROCERIES ONLINE,Catering Supplies,Catering Food & Beverages ,03.10.2019,16.11.2019,GPC10190000070,64.60
Stockport MBC,Corporate and Support Services,Corporate & Democratic Core,WWW.POPPYLOTTERY.SAFEA,Furniture and Equipment,Environmental Services Technical Equipment ,24.10.2019,16.11.2019,GPC10190000071,100.00
Stockport MBC,Corporate and Support Services,Corporate & Democratic Core,AMZNMKTPLACE AMAZON.CO,Furniture and Equipment,Environmental Services Technical Equipment ,16.10.2019,16.11.2019,GPC10190000072,69.99
Stockport MBC,Corporate and Support Services,Corporate & Democratic Core,EB  SEMINAR REVIEWING,Staff Training,Human Resources  ,16.10.2019,16.11.2019,GPC10190000073,299.94
Stockport MBC,Corporate and Support Services,Corporate & Democratic Core,OPEN FORUM EVENTS,Staff Training,Human Resources  ,09.10.2019,16.11.2019,GPC10190000074,294.00
Stockport MBC,Corporate and Support Services,Corporate & Democratic Core,AMAZON.CO.UK MO0PS5ZF4,Furniture and Equipment,Environmental Services Technical Equipment ,03.10.2019,16.11.2019,GPC10190000075,96.83
Stockport MBC,Corporate and Support Services,Central Support Costs,AMZNMKTPLACE AMAZON.CO,Office Expenses,Stationery    ,16.10.2019,16.11.2019,GPC10190000076,2.88
Stockport MBC,Corporate and Support Services,Corporate & Democratic Core,TRAINLINE,Travelling Expenses,Human Resources Travel & Subsistence ,08.10.2019,16.11.2019,GPC10190000077,-171.20
Stockport MBC,Corporate and Support Services,Central Support Costs,BT CONFERENCING,Information and Communications Technology,Information Communication Technology  ,08.10.2019,16.11.2019,GPC10190000078,80.09
Stockport MBC,Corporate and Support Services,Central Support Costs,EMX DYNAMICS LTD,Furniture and Equipment,Environmental Services Technical Equipment ,04.10.2019,16.11.2019,GPC10190000079,68.76
Stockport MBC,Corporate and Support Services,Central Support Costs,MAN MET UNI,Staff Training,Human Resources  ,04.10.2019,16.11.2019,GPC10190000080,40.00
Stockport MBC,Services to People,Public Health,PAYPAL  5 AREAS LTD,Library Equipment,Education Library Books ,15.10.2019,16.11.2019,GPC10190000081,225.00
Stockport MBC,Corporate and Support Services,Cultural & Related Services,BRIDGE LANE NEWS,Catering Supplies,Catering Food & Beverages ,12.10.2019,16.11.2019,GPC10190000082,4.20
Stockport MBC,Corporate and Support Services,Cultural & Related Services,SAINSBURYS LOC6202,Catering Supplies,Catering Food & Beverages ,18.10.2019,16.11.2019,GPC10190000083,12.90
Stockport MBC,Services to People,Childrens & Educational Services,AMAZON PRIME MO1VD3MP4,Office Expenses,Stationery    ,18.10.2019,16.11.2019,GPC10190000084,7.99
Stockport MBC,Services to People,Childrens & Educational Services,BOOKERECOMM,Office Expenses,Stationery    ,14.10.2019,16.11.2019,GPC10190000085,75.66
Stockport MBC,Services to People,Childrens & Educational Services,AMZNMKTPLACE,Library Equipment,Education Library Books ,11.10.2019,16.11.2019,GPC10190000086,39.80
Stockport MBC,Services to People,Childrens & Educational Services,AMZNMKTPLACE,Office Expenses,Stationery    ,09.10.2019,16.11.2019,GPC10190000087,161.43
Stockport MBC,Services to People,Childrens & Educational Services,AMZNMKTPLACE AMAZON.CO,Furniture and Equipment,Environmental Services Technical Equipment ,16.10.2019,16.11.2019,GPC10190000088,63.78
Stockport MBC,Services to People,Childrens & Educational Services,WWW.TENPIN.CO.UK,Fees and Charges,Education  ,14.10.2019,16.11.2019,GPC10190000089,54.15
Stockport MBC,Services to People,Childrens & Educational Services,WWW.TENPIN.CO.UK,Fees and Charges,Education  ,14.10.2019,16.11.2019,GPC10190000090,54.15
Stockport MBC,Services to People,Childrens & Educational Services,AMAZON.CO.UK MO6E85JQ4,Furniture and Equipment,Environmental Services Technical Equipment ,12.10.2019,16.11.2019,GPC10190000091,40.52
Stockport MBC,Services to People,Childrens & Educational Services,AMAZON.CO.UK MO84P1J24,Furniture and Equipment,Environmental Services Technical Equipment ,10.10.2019,16.11.2019,GPC10190000092,40.52
Stockport MBC,Services to People,Childrens & Educational Services,AMZNMKTPLACE AMAZON.CO,Furniture and Equipment,Furniture & Soft Furnishings  ,29.10.2019,16.11.2019,GPC10190000093,8.49
Stockport MBC,Services to People,Childrens & Educational Services,THE LOWRY CENTRE LTD,Fees and Charges,Education  ,16.10.2019,16.11.2019,GPC10190000094,90.50
Stockport MBC,Services to People,Childrens & Educational Services,WICKES BUILDING,Catering Supplies,Catering Food & Beverages ,15.10.2019,16.11.2019,GPC10190000095,36.00
Stockport MBC,Services to People,Childrens & Educational Services,MY.MORRISONS.COM,Repairs and Maintenance,"Works - Construction, Repair & Maintenance  ",15.10.2019,16.11.2019,GPC10190000096,6.00
Stockport MBC,Corporate and Support Services,Corporate & Democratic Core,SAINSBURYS SUPERMARKET,Catering Supplies,Catering Food & Beverages ,16.10.2019,16.11.2019,GPC10190000097,28.05
Stockport MBC,Corporate and Support Services,Corporate & Democratic Core,WEST COAST TRAINS,Travelling Expenses,Human Resources Travel & Subsistence ,09.10.2019,16.11.2019,GPC10190000098,-27.80
Stockport MBC,Corporate and Support Services,Corporate & Democratic Core,WEST COAST TRAINS,Travelling Expenses,Human Resources Travel & Subsistence ,08.10.2019,16.11.2019,GPC10190000099,37.80
Stockport MBC,Corporate and Support Services,Corporate & Democratic Core,WEST COAST TRAINS,Travelling Expenses,Human Resources Travel & Subsistence ,04.10.2019,16.11.2019,GPC10190000100,12.60
Stockport MBC,Services to People,Adult Social Care,HMCOURTS-SERVICE.G,Legal Fees,Legal Services  ,30.10.2019,16.11.2019,GPC10190000101,75.00
Stockport MBC,Services to People,Adult Social Care,HMCOURTS-SERVICE.G,Legal Fees,Legal Services  ,28.10.2019,16.11.2019,GPC10190000102,75.00
Stockport MBC,Services to People,Adult Social Care,HMCOURTS-SERVICE.G,Legal Fees,Legal Services  ,21.10.2019,16.11.2019,GPC10190000103,75.00
Stockport MBC,Services to People,Adult Social Care,HMCOURTS-SERVICE.G,Legal Fees,Legal Services  ,18.10.2019,16.11.2019,GPC10190000104,75.00
Stockport MBC,Services to People,Adult Social Care,HMCOURTS-SERVICE.G,Legal Fees,Legal Services  ,04.10.2019,16.11.2019,GPC10190000105,75.00
Stockport MBC,Services to People,Childrens & Educational Services,ASDA STORES 4840,Catering Supplies,Catering Food & Beverages ,30.10.2019,16.11.2019,GPC10190000106,30.30
Stockport MBC,Services to People,Childrens & Educational Services,ASDA STORES 4840,Catering Supplies,Catering Food & Beverages ,16.10.2019,16.11.2019,GPC10190000107,23.50
Stockport MBC,Services to People,Childrens & Educational Services,ASDA STORES 4840,Catering Supplies,Catering Food & Beverages ,08.10.2019,16.11.2019,GPC10190000108,8.75
Stockport MBC,Services to People,Childrens & Educational Services,ASDA STORES 4840,Catering Supplies,Catering Food & Beverages ,08.10.2019,16.11.2019,GPC10190000109,22.40
Stockport MBC,Services to People,Childrens & Educational Services,ASDA STORES 4840,Catering Supplies,Catering Food & Beverages ,03.10.2019,16.11.2019,GPC10190000110,42.91
Stockport MBC,Services to People,Childrens & Educational Services,POUNDSTRETCHER 793,Cleaning,Cleaning & Janitorial  ,02.10.2019,16.11.2019,GPC10190000111,5.50
Stockport MBC,Services to People,Childrens & Educational Services,ASDA STORES 4840,Cleaning,Cleaning & Janitorial  ,02.10.2019,16.11.2019,GPC10190000112,7.40
Stockport MBC,Services to People,Childrens & Educational Services,ALDI 40 773,Cleaning,Cleaning & Janitorial  ,02.10.2019,16.11.2019,GPC10190000113,91.93
Stockport MBC,Services to People,Childrens & Educational Services,AMZN MKTP UK AMAZON.CO,Information and Communications Technology,Information Communication Technology  ,09.10.2019,16.11.2019,GPC10190000114,-6.33
Stockport MBC,Services to People,Childrens & Educational Services,AMZ AMAZON US,Information and Communications Technology,Information Communication Technology  ,09.10.2019,16.11.2019,GPC10190000115,-6.33
Stockport MBC,Services to People,Childrens & Educational Services,AMZ AMAZON US,Information and Communications Technology,Information Communication Technology  ,09.10.2019,16.11.2019,GPC10190000116,-6.33
Stockport MBC,Services to People,Childrens & Educational Services,AMZ AMAZON US,Information and Communications Technology,Information Communication Technology  ,09.10.2019,16.11.2019,GPC10190000117,-6.33
Stockport MBC,Services to People,Childrens & Educational Services,AMZ AMAZON US,Information and Communications Technology,Information Communication Technology  ,09.10.2019,16.11.2019,GPC10190000118,-6.33
Stockport MBC,Services to People,Childrens & Educational Services,MITCHELLSANDBUTLER,Publicity and Promotion,Arts & Leisure Services  ,23.10.2019,16.11.2019,GPC10190000119,75.00
Stockport MBC,Services to People,Childrens & Educational Services,TRAINLINE.COM,Travelling Expenses,Human Resources Travel & Subsistence ,21.10.2019,16.11.2019,GPC10190000120,15.45
Stockport MBC,Services to People,Childrens & Educational Services,CROWNE PLAZA BIRMINGHA,Care Payments,Social Community Care Supplies & Services  ,21.10.2019,16.11.2019,GPC10190000121,152.85
Stockport MBC,Services to People,Childrens & Educational Services,WWW.ICO.ORG.UK,Fees and Charges,"Works - Construction, Repair & Maintenance  ",18.10.2019,16.11.2019,GPC10190000122,40.00
Stockport MBC,Services to People,Childrens & Educational Services,PREMIER INN44514505,Staff Training,Human Resources  ,18.10.2019,16.11.2019,GPC10190000123,148.00
Stockport MBC,Services to People,Childrens & Educational Services,TRAINLINE,Travelling Expenses,Human Resources Travel & Subsistence ,17.10.2019,16.11.2019,GPC10190000124,35.55
Stockport MBC,Services to People,Childrens & Educational Services,TRAINLINE,Travelling Expenses,Human Resources Travel & Subsistence ,17.10.2019,16.11.2019,GPC10190000125,35.55
Stockport MBC,Services to People,Childrens & Educational Services,TRAINLINE,Travelling Expenses,Human Resources Travel & Subsistence ,17.10.2019,16.11.2019,GPC10190000126,71.30
Stockport MBC,Services to People,Childrens & Educational Services,TRAVELODGE GB0000,Care Payments,Social Community Care Supplies & Services  ,18.10.2019,16.11.2019,GPC10190000127,890.36
Stockport MBC,Services to People,Childrens & Educational Services,TRAINLINE.COM,Travelling Expenses,Human Resources Travel & Subsistence ,16.10.2019,16.11.2019,GPC10190000128,43.20
Stockport MBC,Services to People,Childrens & Educational Services,TRAINLINE.COM,Travelling Expenses,Human Resources Travel & Subsistence ,16.10.2019,16.11.2019,GPC10190000129,38.80
Stockport MBC,Services to People,Childrens & Educational Services,TRAINLINE.COM,Travelling Expenses,Human Resources Travel & Subsistence ,16.10.2019,16.11.2019,GPC10190000130,28.55
Stockport MBC,Services to People,Childrens & Educational Services,TRAINLINE.COM,Travelling Expenses,Human Resources Travel & Subsistence ,16.10.2019,16.11.2019,GPC10190000131,28.55
Stockport MBC,Services to People,Childrens & Educational Services,TRAINLINE.COM,Travelling Expenses,Human Resources Travel & Subsistence ,16.10.2019,16.11.2019,GPC10190000132,28.55
Stockport MBC,Services to People,Childrens & Educational Services,TRAINLINE.COM,Travelling Expenses,Human Resources Travel & Subsistence ,16.10.2019,16.11.2019,GPC10190000133,28.55
Stockport MBC,Services to People,Childrens & Educational Services,TRAINLINE.COM,Travelling Expenses,Human Resources Travel & Subsistence ,16.10.2019,16.11.2019,GPC10190000134,323.50
Stockport MBC,Services to People,Childrens & Educational Services,BREDBURY HALL HOTEL &,Publicity and Promotion,Arts & Leisure Services  ,14.10.2019,16.11.2019,GPC10190000135,75.00
Stockport MBC,Services to People,Childrens & Educational Services,TRAINLINE.COM,Travelling Expenses,Human Resources Travel & Subsistence ,15.10.2019,16.11.2019,GPC10190000136,408.20
Stockport MBC,Services to People,Childrens & Educational Services,TRAINLINE.COM,Care Payments,Social Community Care Supplies & Services  ,15.10.2019,16.11.2019,GPC10190000137,200.30
Stockport MBC,Services to People,Childrens & Educational Services,METRO TAXIS LIMITED,Travelling Expenses,Human Resources Travel & Subsistence Taxi Fares,14.10.2019,16.11.2019,GPC10190000138,12.00
Stockport MBC,Services to People,Childrens & Educational Services,METRO TAXIS LIMITED,Travelling Expenses,Human Resources Travel & Subsistence Taxi Fares,14.10.2019,16.11.2019,GPC10190000139,12.00
Stockport MBC,Services to People,Childrens & Educational Services,FLYBEJZA2 JZA2KQ,Travelling Expenses,Human Resources Travel & Subsistence ,09.10.2019,16.11.2019,GPC10190000140,488.44
Stockport MBC,Services to People,Childrens & Educational Services,TRAINLINE.COM,Travelling Expenses,Human Resources Travel & Subsistence ,08.10.2019,16.11.2019,GPC10190000141,70.50
Stockport MBC,Services to People,Childrens & Educational Services,TRAINLINE.COM,Travelling Expenses,Human Resources Travel & Subsistence ,07.10.2019,16.11.2019,GPC10190000142,87.05
Stockport MBC,Services to People,Childrens & Educational Services,TRAVELODGE GB0000,Care Payments,Social Community Care Supplies & Services  ,04.10.2019,16.11.2019,GPC10190000143,613.40
Stockport MBC,Services to People,Childrens & Educational Services,TRAINLINE.COM,Care Payments,Social Community Care Supplies & Services  ,30.10.2019,16.11.2019,GPC10190000144,17.55
Stockport MBC,Services to People,Childrens & Educational Services,DISCOVERY CENTRE MANCH,Care Payments,Social Community Care Supplies & Services  ,29.10.2019,16.11.2019,GPC10190000145,41.70
Stockport MBC,Services to People,Childrens & Educational Services,ROYAL LANCASTER LONDON,Expenses and Allowances,Human Resources Training & Conferences ,24.10.2019,16.11.2019,GPC10190000146,233.10
Stockport MBC,Services to People,Childrens & Educational Services,TRAINLINE.COM,Care Payments,Social Community Care Supplies & Services  ,25.10.2019,16.11.2019,GPC10190000147,87.00
Stockport MBC,Services to People,Childrens & Educational Services,TRAINLINE.COM,Care Payments,Social Community Care Supplies & Services  ,25.10.2019,16.11.2019,GPC10190000148,143.90
Stockport MBC,Services to People,Childrens & Educational Services,ROYAL LANCASTER LONDON,Expenses and Allowances,Human Resources Training & Conferences ,24.10.2019,16.11.2019,GPC10190000149,233.10
Stockport MBC,Services to People,Childrens & Educational Services,ROYAL LANCASTER LONDON,Expenses and Allowances,Human Resources Training & Conferences ,24.10.2019,16.11.2019,GPC10190000150,233.10
Stockport MBC,Services to People,Childrens & Educational Services,ROYAL LANCASTER LONDON,Expenses and Allowances,Human Resources Training & Conferences ,24.10.2019,16.11.2019,GPC10190000151,233.10
Stockport MBC,Services to People,Childrens & Educational Services,ROYAL LANCASTER LONDON,Expenses and Allowances,Human Resources Training & Conferences ,24.10.2019,16.11.2019,GPC10190000152,233.10
Stockport MBC,Services to People,Childrens & Educational Services,ROYAL LANCASTER LONDON,Expenses and Allowances,Human Resources Training & Conferences ,24.10.2019,16.11.2019,GPC10190000153,233.10
Stockport MBC,Services to People,Childrens & Educational Services,TRAINLINE.COM,Travelling Expenses,Human Resources Travel & Subsistence ,21.10.2019,16.11.2019,GPC10190000154,576.05
Stockport MBC,Services to People,Childrens & Educational Services,WWW.PONDKEEPER.CO.UK,Repairs and Maintenance,"Works - Construction, Repair & Maintenance  ",18.10.2019,16.11.2019,GPC10190000155,72.86
Stockport MBC,Services to People,Childrens & Educational Services,TRAINLINE.COM,Travelling Expenses,Human Resources Travel & Subsistence ,17.10.2019,16.11.2019,GPC10190000156,272.10
Stockport MBC,Services to People,Childrens & Educational Services,TRAINLINE,Travelling Expenses,Human Resources Travel & Subsistence ,14.10.2019,16.11.2019,GPC10190000157,85.35
Stockport MBC,Services to People,Childrens & Educational Services,TRAINLINE,Travelling Expenses,Human Resources Travel & Subsistence ,14.10.2019,16.11.2019,GPC10190000158,56.85
Stockport MBC,Services to People,Childrens & Educational Services,TRAINLINE,Travelling Expenses,Human Resources Travel & Subsistence ,14.10.2019,16.11.2019,GPC10190000159,90.60
Stockport MBC,Services to People,Childrens & Educational Services,TRAINLINE.COM,Travelling Expenses,Human Resources Travel & Subsistence ,11.10.2019,16.11.2019,GPC10190000160,71.70
Stockport MBC,Services to People,Childrens & Educational Services,AMZNMKTPLACE,Furniture and Equipment,Furniture & Soft Furnishings  ,13.10.2019,16.11.2019,GPC10190000161,27.26
Stockport MBC,Services to People,Childrens & Educational Services,TRAINLINE.COM,Travelling Expenses,Human Resources Travel & Subsistence ,11.10.2019,16.11.2019,GPC10190000162,38.00
Stockport MBC,Services to People,Childrens & Educational Services,ALMA LODGE HOTEL,Care Payments,Social Community Care Supplies & Services  ,10.10.2019,16.11.2019,GPC10190000163,59.17
Stockport MBC,Services to People,Childrens & Educational Services,TRAINLINE,Travelling Expenses,Human Resources Travel & Subsistence ,03.10.2019,16.11.2019,GPC10190000164,182.70
Stockport MBC,Services to People,Childrens & Educational Services,TRAINLINE,Travelling Expenses,Human Resources Travel & Subsistence ,03.10.2019,16.11.2019,GPC10190000165,67.90
Stockport MBC,Services to People,Childrens & Educational Services,AMAZON.CO.UK MO5V74Z14,Furniture and Equipment,Environmental Services Technical Equipment ,03.10.2019,16.11.2019,GPC10190000166,10.83
Stockport MBC,Services to People,Childrens & Educational Services,TRAVELODGE GB0000,Care Payments,Social Community Care Supplies & Services  ,02.10.2019,16.11.2019,GPC10190000167,370.99
Stockport MBC,Services to People,Childrens & Educational Services,BRITANNIA,Care Payments,Social Community Care Supplies & Services  ,02.10.2019,16.11.2019,GPC10190000168,102.00
Stockport MBC,Services to Place,Planning Services,PREMIER INN 44536810,Expenses and Allowances,Human Resources Training & Conferences ,28.10.2019,16.11.2019,GPC10190000169,85.50
Stockport MBC,Services to Place,Environmental & Regulatory Services,INTERCONTINENTAL HOTEL,Expenses and Allowances,Human Resources Travel & Subsistence ,24.10.2019,16.11.2019,GPC10190000170,13.89
Stockport MBC,Services to Place,Planning Services,PREMIER INN 44536810,Expenses and Allowances,Human Resources Training & Conferences ,21.10.2019,16.11.2019,GPC10190000171,61.50
Stockport MBC,Services to People,Childrens & Educational Services,MARKS&SPENCER PLC,Expenses and Allowances,Catering  ,08.10.2019,16.11.2019,GPC10190000172,25.00
Stockport MBC,Services to People,Childrens & Educational Services,MAN MET UNI,Expenses and Allowances,Human Resources Training & Conferences ,03.10.2019,16.11.2019,GPC10190000173,40.00
Stockport MBC,Services to People,Childrens & Educational Services,TRAVELODGE GB0000,Staff Training,Human Resources  ,31.10.2019,16.11.2019,GPC10190000174,404.18
Stockport MBC,Services to People,Childrens & Educational Services,TRAINLINE.COM,Travelling Expenses,Human Resources Travel & Subsistence ,29.10.2019,16.11.2019,GPC10190000175,270.50
Stockport MBC,Services to People,Childrens & Educational Services,TRAINLINE,Travelling Expenses,Human Resources Travel & Subsistence ,29.10.2019,16.11.2019,GPC10190000176,75.60
Stockport MBC,Services to People,Childrens & Educational Services,TRAINLINE,Travelling Expenses,Human Resources Travel & Subsistence ,29.10.2019,16.11.2019,GPC10190000177,13.15
Stockport MBC,Services to People,Childrens & Educational Services,TRAINLINE,Travelling Expenses,Human Resources Travel & Subsistence ,29.10.2019,16.11.2019,GPC10190000178,191.60
Stockport MBC,Services to People,Childrens & Educational Services,TRAINLINE,Travelling Expenses,Human Resources Travel & Subsistence ,21.10.2019,16.11.2019,GPC10190000179,221.05
Stockport MBC,Services to People,Childrens & Educational Services,TRAINLINE,Travelling Expenses,Human Resources Travel & Subsistence ,02.10.2019,16.11.2019,GPC10190000180,127.70
Stockport MBC,Services to People,Childrens & Educational Services,WM MORRISONS STORE,Furniture and Equipment,Furniture & Soft Furnishings  ,30.10.2019,16.11.2019,GPC10190000181,6.64
Stockport MBC,Services to People,Childrens & Educational Services,WM MORRISONS STORE,Furniture and Equipment,Furniture & Soft Furnishings  ,29.10.2019,16.11.2019,GPC10190000182,27.10
Stockport MBC,Services to People,Childrens & Educational Services,MIMEO LTD,Furniture and Equipment,Furniture & Soft Furnishings  ,26.09.2019,16.11.2019,GPC10190000183,390.49
Stockport MBC,Services to People,Childrens & Educational Services,W M MORRISON STORE,Catering Supplies,Catering Food & Beverages ,28.10.2019,16.11.2019,GPC10190000184,84.90
Stockport MBC,Services to People,Childrens & Educational Services,W M MORRISON STORE,Catering Supplies,Catering Food & Beverages ,07.10.2019,16.11.2019,GPC10190000185,85.47
Stockport MBC,Services to People,Childrens & Educational Services,AMAZON MUSIC MO8UI3KH4,Fees and Charges,Financial Services  ,29.10.2019,16.11.2019,GPC10190000186,3.99
Stockport MBC,Services to People,Childrens & Educational Services,TRAINLINE.COM,Travelling Expenses,Human Resources Travel & Subsistence ,25.10.2019,16.11.2019,GPC10190000187,60.60
Stockport MBC,Services to People,Childrens & Educational Services,PRIME VIDEO MO05O1QV4,Publicity and Promotion,Arts & Leisure Services  ,22.10.2019,16.11.2019,GPC10190000188,4.49
Stockport MBC,Services to People,Childrens & Educational Services,AMAZON PRIME MO88M0MO4,Fees and Charges,Financial Services  ,18.10.2019,16.11.2019,GPC10190000189,7.99
Stockport MBC,Services to People,Childrens & Educational Services,B & Q 1279,Repairs and Maintenance,"Works - Construction, Repair & Maintenance  ",11.10.2019,16.11.2019,GPC10190000190,211.40
Stockport MBC,Services to People,Childrens & Educational Services,SCREWFIX STOCKPORT,Furniture and Equipment,Environmental Services Technical Equipment ,11.10.2019,16.11.2019,GPC10190000191,150.15
Stockport MBC,Services to People,Childrens & Educational Services,SCREWFIX STOCKPORT,Furniture and Equipment,Environmental Services Technical Equipment ,11.10.2019,16.11.2019,GPC10190000192,1.49
Stockport MBC,Services to People,Childrens & Educational Services,SUMUP   CROSSLEYS BAKE,Catering Supplies,Catering Food & Beverages ,10.10.2019,16.11.2019,GPC10190000193,6.00
Stockport MBC,Services to People,Childrens & Educational Services,B & M RETAIL,Furniture and Equipment,Environmental Services Technical Equipment ,05.10.2019,16.11.2019,GPC10190000194,50.00
Stockport MBC,Services to People,Childrens & Educational Services,MCDONALDS,Catering Supplies,Catering Food & Beverages ,05.10.2019,16.11.2019,GPC10190000195,13.92
Stockport MBC,Services to People,Childrens & Educational Services,PRIME VIDEO MO5P09304,Publicity and Promotion,Arts & Leisure Services  ,05.10.2019,16.11.2019,GPC10190000196,4.49
Stockport MBC,Corporate and Support Services,Cultural & Related Services,TESCO STORES 5447,Catering Supplies,Catering Food & Beverages ,19.10.2019,16.11.2019,GPC10190000197,4.96
Stockport MBC,Corporate and Support Services,Cultural & Related Services,AMZNMKTPLACE,Catering Supplies,Catering Food & Beverages ,17.10.2019,16.11.2019,GPC10190000198,13.93
Stockport MBC,Services to People,Adult Social Care,STOCKPORT NHS FOUNDATI,Travelling Expenses,Human Resources Travel & Subsistence ,24.10.2019,16.11.2019,GPC10190000199,5.50
Stockport MBC,Services to People,Adult Social Care,STOCKPORT NHS FOUNDATI,Travelling Expenses,Human Resources Travel & Subsistence ,22.10.2019,16.11.2019,GPC10190000200,8.00
Stockport MBC,Services to People,Adult Social Care,WWW.HEALTHCARECONFEREN,Professional Fees,Consultancy   ,23.10.2019,16.11.2019,GPC10190000201,394.20
Stockport MBC,Services to People,Adult Social Care,STOCKPORT STN SST,Travelling Expenses,Human Resources Travel & Subsistence ,21.10.2019,16.11.2019,GPC10190000202,6.30
Stockport MBC,Services to People,Adult Social Care,STOCKPORT NHS FOUNDATI,Travelling Expenses,Human Resources Travel & Subsistence ,16.10.2019,16.11.2019,GPC10190000203,3.50
Stockport MBC,Services to People,Adult Social Care,STOCKPORT NHS FOUNDATI,Travelling Expenses,Human Resources Travel & Subsistence ,15.10.2019,16.11.2019,GPC10190000204,3.50
Stockport MBC,Services to People,Adult Social Care,STOCKPORT NHS FOUNDATI,Travelling Expenses,Human Resources Travel & Subsistence ,14.10.2019,16.11.2019,GPC10190000205,3.50
Stockport MBC,Services to People,Adult Social Care,STOCKPORT NHS FOUNDATI,Travelling Expenses,Human Resources Travel & Subsistence ,14.10.2019,16.11.2019,GPC10190000206,3.50
Stockport MBC,Services to People,Childrens & Educational Services,AMAZON.CO.UK HG2QJ1715,Furniture and Equipment,Environmental Services Technical Equipment ,31.10.2019,16.11.2019,GPC10190000207,15.98
Stockport MBC,Services to People,Childrens & Educational Services,AMZNMKTPLACE,Furniture and Equipment,Environmental Services Technical Equipment ,01.11.2019,16.11.2019,GPC10190000208,69.00
Stockport MBC,Services to People,Childrens & Educational Services,AMZNMKTPLACE,Furniture and Equipment,Environmental Services Technical Equipment ,29.10.2019,16.11.2019,GPC10190000209,30.60
Stockport MBC,Services to People,Childrens & Educational Services,AMAZON.CO.UK MO2BK42G4,Furniture and Equipment,Environmental Services Technical Equipment ,29.10.2019,16.11.2019,GPC10190000210,9.69
Stockport MBC,Services to People,Childrens & Educational Services,WWW.TES.COM,Staff Training,Human Resources  ,24.10.2019,16.11.2019,GPC10190000211,14.00
Stockport MBC,Services to People,Childrens & Educational Services,AMZNMKTPLACE AMAZON.CO,Furniture and Equipment,Environmental Services Technical Equipment ,09.10.2019,16.11.2019,GPC10190000212,53.90
Stockport MBC,Services to People,Childrens & Educational Services,AMZNMKTPLACE AMAZON.CO,Furniture and Equipment,Environmental Services Technical Equipment ,08.10.2019,16.11.2019,GPC10190000213,18.49
Stockport MBC,Services to People,Childrens & Educational Services,AMZNMKTPLACE,Furniture and Equipment,Environmental Services Technical Equipment ,07.10.2019,16.11.2019,GPC10190000214,15.48
Stockport MBC,Corporate and Support Services,Planning Services,PAYPAL  EBAY DIAMONTED,Publicity and Promotion,Arts & Leisure Services  ,28.10.2019,16.11.2019,GPC10190000215,21.12
Stockport MBC,Corporate and Support Services,Planning Services,SUMUP   WINDMILL COFFE,Publicity and Promotion,Arts & Leisure Services  ,22.10.2019,16.11.2019,GPC10190000216,11.15
Stockport MBC,Corporate and Support Services,Planning Services,METRO TAXIS LIMITED,Publicity and Promotion,Arts & Leisure Services  ,18.10.2019,16.11.2019,GPC10190000217,4.50
Stockport MBC,Corporate and Support Services,Planning Services,METRO TAXIS LIMITED,Publicity and Promotion,Arts & Leisure Services  ,18.10.2019,16.11.2019,GPC10190000218,5.00
Stockport MBC,Corporate and Support Services,Planning Services,DOMINOS PIZZA UK & IRE,Publicity and Promotion,Arts & Leisure Services  ,09.10.2019,16.11.2019,GPC10190000219,45.56
Stockport MBC,Corporate and Support Services,Planning Services,DOMINOS,Publicity and Promotion,Arts & Leisure Services  ,09.10.2019,16.11.2019,GPC10190000220,9.99
Stockport MBC,Corporate and Support Services,Central Support Costs,AMAZON.CO.UK MO3W35KA4,Furniture and Equipment,Environmental Services Technical Equipment ,30.10.2019,16.11.2019,GPC10190000221,38.36
Stockport MBC,Corporate and Support Services,Central Support Costs,GOOGLE  CLOUD_006788-6,Information and Communications Technology,Information Communication Technology  ,29.10.2019,16.11.2019,GPC10190000222,9.51
Stockport MBC,Corporate and Support Services,Central Support Costs,GITHUB,Information and Communications Technology,Information Communication Technology  ,28.10.2019,16.11.2019,GPC10190000223,164.72
Stockport MBC,Corporate and Support Services,Central Support Costs,ZOOM.GBP,Information and Communications Technology,Information Communication Technology  ,25.10.2019,16.11.2019,GPC10190000224,239.80
Stockport MBC,Corporate and Support Services,Central Support Costs,SNAPMAD.COM,Furniture and Equipment,Environmental Services Technical Equipment ,18.10.2019,16.11.2019,GPC10190000225,34.63
Stockport MBC,Corporate and Support Services,Central Support Costs,EB  SERVICE DESIGN FRI,Expenses and Allowances,Human Resources Training & Conferences ,16.10.2019,16.11.2019,GPC10190000226,24.80
Stockport MBC,Corporate and Support Services,Central Support Costs,EB  LEEDS GOV JAM 2019,Expenses and Allowances,Human Resources Training & Conferences ,15.10.2019,16.11.2019,GPC10190000227,32.73
Stockport MBC,Corporate and Support Services,Central Support Costs,EB  LEEDS GOV JAM 2019,Expenses and Allowances,Human Resources Training & Conferences ,15.10.2019,16.11.2019,GPC10190000228,32.73
Stockport MBC,Corporate and Support Services,Central Support Costs,AUTH0.COM,Information and Communications Technology,Information Communication Technology  ,13.10.2019,16.11.2019,GPC10190000229,9.95
Stockport MBC,Corporate and Support Services,Central Support Costs,WWW.CONTENTFUL.COM,Information and Communications Technology,Information Communication Technology  ,10.10.2019,16.11.2019,GPC10190000230,815.47
Stockport MBC,Corporate and Support Services,Central Support Costs,AMZNMKTPLACE,Furniture and Equipment,Environmental Services Technical Equipment ,07.10.2019,16.11.2019,GPC10190000231,86.50
Stockport MBC,Corporate and Support Services,Central Support Costs,AUTH0.COM,Information and Communications Technology,Information Communication Technology  ,05.10.2019,16.11.2019,GPC10190000232,167.68
Stockport MBC,Corporate and Support Services,Central Support Costs,AWS EMEA,Information and Communications Technology,Information Communication Technology  ,03.10.2019,16.11.2019,GPC10190000233,856.10
Stockport MBC,Corporate and Support Services,Cultural & Related Services,AMAZON.CO.UK MO8CZ06X4,Library Equipment,Education Library Books ,27.10.2019,16.11.2019,GPC10190000234,26.97
Stockport MBC,Services to People,Childrens & Educational Services,ASDA GROCERIES ONLINE,Catering Supplies,Catering Food & Beverages ,30.10.2019,16.11.2019,GPC10190000235,66.68
Stockport MBC,Services to People,Childrens & Educational Services,WM MORRISONS STORE,Catering Supplies,Catering Food & Beverages ,28.10.2019,16.11.2019,GPC10190000236,15.00
Stockport MBC,Services to People,Childrens & Educational Services,WM MORRISONS STORE,Catering Supplies,Catering Food & Beverages ,16.10.2019,16.11.2019,GPC10190000237,60.75
Stockport MBC,Services to People,Childrens & Educational Services,WM MORRISONS STORE,Catering Supplies,Catering Food & Beverages ,04.10.2019,16.11.2019,GPC10190000238,16.75
Stockport MBC,Services to People,Childrens & Educational Services,MIMEO LTD,Library Equipment,Education Library Books ,02.10.2019,16.11.2019,GPC10190000239,73.54
Stockport MBC,Services to People,Childrens & Educational Services,AMZNMKTPLACE,Furniture and Equipment,Furniture & Soft Furnishings  ,04.10.2019,16.11.2019,GPC10190000240,108.92
Stockport MBC,Corporate and Support Services,Central Support Costs,AMZNMKTPLACE AMAZON.CO,Furniture and Equipment,Environmental Services Technical Equipment ,27.10.2019,16.11.2019,GPC10190000241,17.46
Stockport MBC,Corporate and Support Services,Central Support Costs,REPLACEBASE,Furniture and Equipment,Environmental Services Technical Equipment ,21.10.2019,16.11.2019,GPC10190000242,155.15
Stockport MBC,Corporate and Support Services,Central Support Costs,AMZNMKTPLACE,Furniture and Equipment,Environmental Services Technical Equipment ,14.10.2019,16.11.2019,GPC10190000243,64.39
Stockport MBC,Corporate and Support Services,Central Support Costs,AMZNMKTPLACE,Furniture and Equipment,Environmental Services Technical Equipment ,08.10.2019,16.11.2019,GPC10190000244,370.41
Stockport MBC,Corporate and Support Services,Corporate & Democratic Core,WWW.EMAP.COM,Library Equipment,Education Library Books ,25.10.2019,16.11.2019,GPC10190000245,311.74
Stockport MBC,Corporate and Support Services,Central Support Costs,TRAINLINE,Travelling Expenses,Human Resources Travel & Subsistence ,24.10.2019,16.11.2019,GPC10190000246,206.20
Stockport MBC,Services to Place,Highways & Transport Services,TRAINLINE,Travelling Expenses,Human Resources Travel & Subsistence ,24.10.2019,16.11.2019,GPC10190000247,23.75
Stockport MBC,Corporate and Support Services,Cultural & Related Services,TRAINLINE,Travelling Expenses,Human Resources Travel & Subsistence ,24.10.2019,16.11.2019,GPC10190000248,270.60
Stockport MBC,Services to Place,Highways & Transport Services,TRAINLINE,Travelling Expenses,Human Resources Travel & Subsistence ,24.10.2019,16.11.2019,GPC10190000249,71.10
Stockport MBC,Corporate and Support Services,Corporate & Democratic Core,TRAINLINE,Travelling Expenses,Human Resources Travel & Subsistence ,24.10.2019,16.11.2019,GPC10190000250,364.60
Stockport MBC,Services to Place,Highways & Transport Services,TRAINLINE,Travelling Expenses,Human Resources Travel & Subsistence ,24.10.2019,16.11.2019,GPC10190000251,26.75
Stockport MBC,Corporate and Support Services,Corporate & Democratic Core,WILMINGTON SHARED SERV,Staff Training,Human Resources  ,24.10.2019,16.11.2019,GPC10190000252,274.00
Stockport MBC,Corporate and Support Services,Central Support Costs,TRAINLINE,Travelling Expenses,Human Resources Travel & Subsistence ,24.10.2019,16.11.2019,GPC10190000253,184.15
Stockport MBC,Corporate and Support Services,Central Support Costs,TRAINLINE,Travelling Expenses,Human Resources Travel & Subsistence ,11.10.2019,16.11.2019,GPC10190000254,11.35
Stockport MBC,Corporate and Support Services,Central Support Costs,TRAINLINE,Travelling Expenses,Human Resources Travel & Subsistence ,11.10.2019,16.11.2019,GPC10190000255,35.55
Stockport MBC,Services to Place,Planning Services,TRAINLINE,Travelling Expenses,Human Resources Travel & Subsistence ,11.10.2019,16.11.2019,GPC10190000256,26.15
Stockport MBC,Services to Place,Highways & Transport Services,WWW.MARKALLENGROUP.COM,Staff Training,Human Resources  ,11.10.2019,16.11.2019,GPC10190000257,298.80
Stockport MBC,Services to Place,Highways & Transport Services,TRAINLINE,Travelling Expenses,Human Resources Travel & Subsistence ,09.10.2019,16.11.2019,GPC10190000258,7.35
Stockport MBC,Corporate and Support Services,Central Support Costs,TRAINLINE,Travelling Expenses,Human Resources Travel & Subsistence ,09.10.2019,16.11.2019,GPC10190000259,35.55
Stockport MBC,Corporate and Support Services,Central Support Costs,TRAINLINE,Travelling Expenses,Human Resources Travel & Subsistence ,09.10.2019,16.11.2019,GPC10190000260,35.55
Stockport MBC,Services to Place,Highways & Transport Services,TRAINLINE,Travelling Expenses,Human Resources Travel & Subsistence ,09.10.2019,16.11.2019,GPC10190000261,16.55
Stockport MBC,Services to Place,Highways & Transport Services,TRAINLINE,Travelling Expenses,Human Resources Travel & Subsistence ,09.10.2019,16.11.2019,GPC10190000262,16.55
Stockport MBC,Services to Place,Highways & Transport Services,TRAINLINE,Staff Training,Human Resources  ,09.10.2019,16.11.2019,GPC10190000263,59.35
Stockport MBC,Corporate and Support Services,Central Services to the public,TRAINLINE,Travelling Expenses,Human Resources Travel & Subsistence ,08.10.2019,16.11.2019,GPC10190000264,207.15
Stockport MBC,Services to Place,Planning Services,TRAINLINE.COM,Staff Training,Human Resources  ,04.10.2019,16.11.2019,GPC10190000265,72.50
Stockport MBC,Services to Place,Cultural & Related Services,TRAINLINE,Publicity and Promotion,Arts & Leisure Services  ,04.10.2019,16.11.2019,GPC10190000266,119.70
Stockport MBC,Corporate and Support Services,Corporate & Democratic Core,HOLIDAY INNS,Expenses and Allowances,Catering  ,05.10.2019,16.11.2019,GPC10190000267,71.00
Stockport MBC,Corporate and Support Services,Cultural & Related Services,STOCKPORT STN SST,Travelling Expenses,Human Resources Travel & Subsistence ,25.10.2019,16.11.2019,GPC10190000268,4.70
Stockport MBC,Corporate and Support Services,Cultural & Related Services,HTTP://PMSE.OFCOM.ORG.,Fees and Charges,"Works - Construction, Repair & Maintenance  ",25.10.2019,16.11.2019,GPC10190000269,85.00
Stockport MBC,Corporate and Support Services,Cultural & Related Services,WM MORRISONS STORE,Expenses and Allowances,Catering  ,09.10.2019,16.11.2019,GPC10190000270,22.90
